[Event "XII Paracin Festival 2019"]
[Site "Paracin"]
[Date "2019.07.06"]
[Round "2.25"]
[White "Lee, Jun Hyeok"]
[Black "Peycheva, Gergana"]
[Result "1-0"]
[ECO "D38"]
[WhiteElo "2383"]
[BlackElo "2065"]
[Annotator "NA"]
[PlyCount "129"]
[EventDate "2019.07.05"]
[EventType "swiss"]
[EventCountry "SRB"]
[SourceTitle "playchess.com"]
[Source "ChessBase"]
[SourceQuality "1"]
[TimeControl "5400+30"]

1. d4 {[%emt 0:00:00]} d5 {[%emt 0:00:00]} 2. c4 {[%emt 0:00:29]} e6 {[%emt 0:00:55]} 3. Nf3 {[%emt 0:01:02]} Nf6 {[%emt 0:00:53]} 4. Nc3 {[%emt 0:00:18]} Bb4 {[%emt 0:01:08]} 5. Qa4+ {[%emt 0:00:19]} Nc6 {[%emt 0:01:27]} 6. e3 {[%emt 0:00:07]} O-O {[%emt 0:06:50]} 7. Bd2 {[%emt 0:01:29]} Bxc3 {[%emt 0:02:30]} 8. Bxc3 {[%emt 0:00:29]} Ne4 {[%emt 0:00:13]} 9. Bd3 {[%emt 0:02:02]} Nxc3 {[%emt 0:05:27]} 10. bxc3 {[%emt 0:00:33]} Ne7 {[%emt 0:04:18]} 11. O-O {[%emt 0:04:54]} b6 {[%emt 0:02:02]} 12. cxd5 {[%emt 0:11:32]} exd5 {[%emt 0:02:09]} 13. c4 {[%emt 0:00:48]} dxc4 {[%emt 0:05:42]} 14. Qxc4 {[%emt 0:00:36]} Be6 {[%emt 0:03:10]} 15. Qc2 {[%emt 0:00:41]} Ng6 {[%emt 0:02:00]} 16. Be4 {[%emt 0:08:09]} Rc8 {[%emt 0:01:44]} 17. Rfd1 {[%emt 0:05:43]} Qe7 {[%emt 0:03:04]} 18. Bb7 {[%emt 0:02:18]} Rcd8 {[%emt 0:03:47]} 19. Bc6 {[%emt 0:00:56]} Bg4 {[%emt 0:03:39]} 20. Rdc1 {[%emt 0:03:23]} f5 {[%emt 0:11:28]} 21. h3 {[%emt 0:07:49]} Bxf3 {[%emt 0:05:25]} 22. Bxf3 {[%emt 0:00:05]} f4 {[%emt 0:00:02]} 23. Qc4+ {[%emt 0:09:20]} Kh8 {[%emt 0:00:47]} 24. Rc3 {[%emt 0:02:03]} Nh4 {[%emt 0:04:04]} 25. e4 {[%emt 0:13:47]} Nxf3+ {[%emt 0:02:15]} 26. Rxf3 {[%emt 0:00:03]} Qxe4 {[%emt 0:00:39]} 27. Qxc7 {[%emt 0:00:09]} Qxd4 {[%emt 0:01:10]} 28. Re1 {[%emt 0:00:06]} h6 {[%emt 0:04:05]} 29. Qxa7 {[%emt 0:00:46]} Rde8 {[%emt 0:02:01]} 30. Rxe8 {[%emt 0:03:04]} Rxe8 {[%emt 0:00:00]} 31. Kh2 {[%emt 0:00:32]} Qd6 {[%emt 0:03:07]} 32. Qa4 {[%emt 0:03:55]} Rf8 {[%emt 0:00:27]} 33. Qe4 {[%emt 0:00:35]} Qc7 {[%emt 0:02:45]} 34. Qd4 {[%emt 0:00:23]} Qc5 {[%emt 0:01:58]} 35. Qe4 {[%emt 0:05:20]} Qd6 {[%emt 0:00:19]} 36. a3 {[%emt 0:00:06]} Qc7 {[%emt 0:02:16]} 37. Qd4 {[%emt 0:00:21]} Qc5 {[%emt 0:00:47]} 38. Qe4 {[%emt 0:00:38]} Qc7 {[%emt 0:00:04]} 39. h4 {[%emt 0:03:02]} Qd6 {[%emt 0:00:18]} 40. Rd3 {[%emt 0:01:48]} Qf6 {[%emt 0:00:45]} 41. Kh3 {[%emt 0:00:10]} Rc8 {[%emt 0:02:25]} 42. Rf3 {[%emt 0:02:23]} Rf8 {[%emt 0:00:11]} 43. g3 {[%emt 0:02:14]} Qf5+ {[%emt 0:07:39]} 44. Qxf5 {[%emt 0:00:02]} Rxf5 {[%emt 0:00:01]} 45. Kg4 {[%emt 0:01:20]} Ra5 {[%emt 0:00:05]} 46. Kxf4 {[%emt 0:00:21]} b5 {[%emt 0:00:23]} 47. Rb3 {[%emt 0:00:30]} Kh7 {[%emt 0:00:36]} 48. Ke4 {[%emt 0:00:59]} Kg6 {[%emt 0:02:48]} 49. Kd4 {[%emt 0:00:14]} Kf5 {[%emt 0:00:52]} 50. Kc5 {[%emt 0:00:46]} Ke4 {[%emt 0:00:40]} 51. Re3+ {[%emt 0:00:46]} Kf5 {[%emt 0:00:05]} 52. Kb6 {[%emt 0:00:10]} Ra8 {[%emt 0:00:06]} 53. Kxb5 {[%emt 0:00:09]} g5 {[%emt 0:00:05]} 54. hxg5 {[%emt 0:00:59]} hxg5 {[%emt 0:00:02]} 55. a4 {[%emt 0:01:33]} Rb8+ {[%emt 0:00:10]} 56. Kc4 {[%emt 0:00:41]} Ra8 {[%emt 0:00:10]} 57. Ra3 {[%emt 0:00:15]} Ke4 {[%emt 0:00:59]} 58. f3+ {[%emt 0:00:23]} Ke5 {[%emt 0:00:05]} 59. a5 {[%emt 0:00:21]} Rc8+ {[%emt 0:00:04]} 60. Kd3 {[%emt 0:00:24]} Rd8+ {[%emt 0:00:14]} 61. Ke3 {[%emt 0:00:06]} Ra8 {[%emt 0:00:16]} 62. a6 {[%emt 0:00:05]} Ra7 {[%emt 0:00:03]} 63. Ra5+ {[%emt 0:00:04]} Kf6 {[%emt 0:00:12]} 64. Ke4 {[%emt 0:00:19]} Re7+ {[%emt 0:00:41]} 65. Kd4 {[%emt 0:00:05]} 1-0

[Event "XII Paracin Festival 2019"]
[Site "Paracin"]
[Date "2019.07.06"]
[Round "2.26"]
[White "Jijo Joy"]
[Black "Nie, Xinyang"]
[Result "0-1"]
[ECO "C11"]
[WhiteElo "2053"]
[BlackElo "2375"]
[Annotator "NA"]
[PlyCount "100"]
[EventDate "2019.07.05"]
[EventType "swiss"]
[EventCountry "SRB"]
[SourceTitle "playchess.com"]
[Source "ChessBase"]
[SourceQuality "1"]
[TimeControl "5400+30"]

1. e4 {[%emt 0:00:00]} e6 {[%emt 0:00:00]} 2. Nf3 {[%emt 0:00:06]} d5 {[%emt 0:00:00]} 3. Nc3 {[%emt 0:00:27]} Nf6 {[%emt 0:00:00]} 4. e5 {[%emt 0:00:15]} Nfd7 {[%emt 0:00:00]} 5. d4 {[%emt 0:00:32]} c5 {[%emt 0:00:00]} 6. dxc5 {[%emt 0:00:11]} Nc6 {[%emt 0:00:00]} 7. Bf4 {[%emt 0:00:16]} Nxc5 {[%emt 0:00:00]} 8. Bd3 {[%emt 0:01:46]} Be7 {[%emt 0:00:05]} 9. h4 {[%emt 0:00:45]} Qb6 {[%emt 0:02:04]} 10. Rb1 {[%emt 0:08:59]} Qb4 {[%emt 0:08:28]} 11. Qd2 {[%emt 0:11:40]} Nxd3+ {[%emt 0:00:05]} 12. cxd3 {[%emt 0:00:04]} Bd7 {[%emt 0:01:10]} 13. Kf1 {[%emt 0:06:17]} Nd4 {[%emt 0:07:30]} 14. Nxd4 {[%emt 0:08:10]} Qxd4 {[%emt 0:00:02]} 15. Ne2 {[%emt 0:10:50]} Qa4 {[%emt 0:02:25]} 16. b3 {[%emt 0:00:35]} Qb4 {[%emt 0:01:36]} 17. Qxb4 {[%emt 0:01:52]} Bxb4 {[%emt 0:00:05]} 18. Nd4 {[%emt 0:01:02]} Rc8 {[%emt 0:01:06]} 19. Rc1 {[%emt 0:03:28]} Ke7 {[%emt 0:01:34]} 20. Ke2 {[%emt 0:01:15]} f6 {[%emt 0:00:05]} 21. g4 {[%emt 0:12:48]} Ba3 {[%emt 0:03:42]} 22. Rxc8 {[%emt 0:01:13]} Rxc8 {[%emt 0:00:05]} 23. Rd1 {[%emt 0:00:13]} a5 {[%emt 0:03:54]} 24. g5 {[%emt 0:03:11]} Bb2 {[%emt 0:01:18]} 25. Ke3 {[%emt 0:02:44]} Ba3 {[%emt 0:01:39]} 26. Rg1 {[%emt 0:08:16]} Kf7 {[%emt 0:07:18]} 27. gxf6 {[%emt 0:06:26]} gxf6 {[%emt 0:00:04]} 28. exf6 {[%emt 0:01:18]} Kxf6 {[%emt 0:00:04]} 29. Bg5+ {[%emt 0:00:05]} Kf7 {[%emt 0:00:05]} 30. f4 {[%emt 0:00:13]} Bc5 {[%emt 0:10:43]} 31. Bh6 {[%emt 0:00:15]} Rg8 {[%emt 0:00:07]} 32. Rxg8 {[%emt 0:00:05]} Kxg8 {[%emt 0:00:01]} 33. Bg5 {[%emt 0:00:08]} Kg7 {[%emt 0:00:25]} 34. Bd8 {[%emt 0:01:19]} b6 {[%emt 0:01:42]} 35. a3 {[%emt 0:05:13]} Kg6 {[%emt 0:02:13]} 36. b4 {[%emt 0:00:12]} axb4 {[%emt 0:00:04]} 37. axb4 {[%emt 0:00:03]} Bxb4 {[%emt 0:00:04]} 38. Bxb6 {[%emt 0:00:05]} Ba3 {[%emt 0:00:40]} 39. Kf3 {[%emt 0:04:23]} Be7 {[%emt 0:00:05]} 40. Kg3 {[%emt 0:00:20]} Kh5 {[%emt 0:00:04]} 41. Nf3 {[%emt 0:00:10]} h6 {[%emt 0:00:18]} 42. Bf2 {[%emt 0:03:17]} Bb5 {[%emt 0:00:01]} 43. Nd4 {[%emt 0:00:22]} Bxd3 {[%emt 0:03:53]} 44. Nxe6 {[%emt 0:00:10]} Bxh4+ {[%emt 0:00:03]} 45. Kf3 {[%emt 0:00:11]} Be4+ {[%emt 0:00:04]} 46. Ke3 {[%emt 0:00:07]} Bxf2+ {[%emt 0:00:02]} 47. Kxf2 {[%emt 0:00:05]} Kg4 {[%emt 0:00:10]} 48. Ke3 {[%emt 0:01:08]} h5 {[%emt 0:00:15]} 49. Ng5 {[%emt 0:01:10]} h4 {[%emt 0:00:19]} 50. Kd4 {[%emt 0:00:42]} Kxf4 {[%emt 0:00:28]} 0-1

[Event "XII Paracin Festival 2019"]
[Site "Paracin"]
[Date "2019.07.06"]
[Round "2.27"]
[White "Tanriverdi, Enes"]
[Black "Tadic, Katarina"]
[Result "1-0"]
[ECO "B96"]
[WhiteElo "2374"]
[BlackElo "2021"]
[Annotator "NA"]
[PlyCount "57"]
[EventDate "2019.07.05"]
[EventType "swiss"]
[EventCountry "SRB"]
[SourceTitle "playchess.com"]
[Source "ChessBase"]
[SourceQuality "1"]
[TimeControl "5400+30"]

1. e4 c5 2. Nf3 d6 3. d4 cxd4 4. Nxd4 Nf6 5. Nc3 a6 6. Bg5 e6 7. f4 Nbd7 8. Qf3 Qc7 9. O-O-O b5 10. e5 Bb7 11. Qh3 dxe5 12. Nxe6 fxe6 13. Qxe6+ Be7 14. Bxb5 axb5 15. Nxb5 Qc6 16. Nd6+ Kd8 17. fxe5 Kc7 18. Kb1 Ne4 19. Bxe7 Nf2 20. Rd4 Nc5 21. Qf7 Nxh1 22. Nxb7 Kxb7 23. Bxc5+ Kc8 24. Rc4 Qb5 25. Bd6+ Qxc4 26. Qxc4+ Kd7 27. Qf7+ Kc6 28. Qf3+ Kd7 29. g4 1-0

[Event "XII Paracin Festival 2019"]
[Site "Paracin"]
[Date "2019.07.06"]
[Round "2.28"]
[White "Koksal, Ege"]
[Black "Ulziikhishigjargal, Ochirkhuyag"]
[Result "1-0"]
[ECO "E15"]
[WhiteElo "2368"]
[BlackElo "2017"]
[Annotator "NA"]
[PlyCount "117"]
[EventDate "2019.07.05"]
[EventType "swiss"]
[EventCountry "SRB"]
[SourceTitle "playchess.com"]
[Source "ChessBase"]
[SourceQuality "1"]
[TimeControl "5400+30"]

1. d4 {[%emt 0:00:00]} Nf6 {[%emt 0:00:00]} 2. c4 {[%emt 0:02:44]} e6 {[%emt 0:00:00]} 3. Nf3 {[%emt 0:00:05]} b6 {[%emt 0:00:00]} 4. g3 {[%emt 0:00:00]} Ba6 {[%emt 0:00:14]} 5. Qa4 {[%emt 0:04:45]} Bb7 {[%emt 0:01:28]} 6. Bg2 {[%emt 0:00:01]} c5 {[%emt 0:00:11]} 7. dxc5 {[%emt 0:00:01]} bxc5 {[%emt 0:00:12]} 8. O-O {[%emt 0:00:02]} Be7 {[%emt 0:00:40]} 9. Nc3 {[%emt 0:00:03]} O-O {[%emt 0:00:53]} 10. Rd1 {[%emt 0:00:01]} Qb6 {[%emt 0:01:48]} 11. Qc2 {[%emt 0:01:01]} Rd8 {[%emt 0:09:32]} 12. e4 {[%emt 0:20:24]} d6 {[%emt 0:05:48]} 13. e5 {[%emt 0:03:03]} dxe5 {[%emt 0:00:41]} 14. Rxd8+ {[%emt 0:00:01]} Bxd8 {[%emt 0:03:20]} 15. Nxe5 {[%emt 0:00:02]} Bxg2 {[%emt 0:00:14]} 16. Kxg2 {[%emt 0:00:01]} Nc6 {[%emt 0:00:18]} 17. Nxc6 {[%emt 0:01:15]} Qxc6+ {[%emt 0:00:02]} 18. Kg1 {[%emt 0:03:04]} Ba5 {[%emt 0:01:25]} 19. Bg5 {[%emt 0:05:26]} Bxc3 {[%emt 0:02:26]} 20. Qxc3 {[%emt 0:00:08]} Ne4 {[%emt 0:00:07]} 21. Qf3 {[%emt 0:00:33]} h6 {[%emt 0:01:58]} 22. Be3 {[%emt 0:04:07]} f5 {[%emt 0:02:25]} 23. b3 {[%emt 0:01:43]} a5 {[%emt 0:00:37]} 24. a4 {[%emt 0:05:17]} Rb8 {[%emt 0:02:43]} 25. Bf4 {[%emt 0:00:19]} Rb7 {[%emt 0:01:00]} 26. Rd1 {[%emt 0:06:09]} Rd7 {[%emt 0:02:04]} 27. Rd3 {[%emt 0:05:57]} g5 {[%emt 0:06:48]} 28. Bc1 {[%emt 0:02:19]} Rd4 {[%emt 0:03:13]} 29. Rxd4 {[%emt 0:13:51]} cxd4 {[%emt 0:00:02]} 30. Qd3 {[%emt 0:00:07]} Qd6 {[%emt 0:07:13]} 31. Bb2 {[%emt 0:01:29]} Nc5 {[%emt 0:02:03]} 32. Qxd4 {[%emt 0:00:31]} Qxd4 {[%emt 0:00:05]} 33. Bxd4 {[%emt 0:00:04]} Nxb3 {[%emt 0:00:09]} 34. Bb6 {[%emt 0:07:04]} Kf7 {[%emt 0:00:19]} 35. c5 {[%emt 0:01:24]} Ke7 {[%emt 0:00:26]} 36. c6 {[%emt 0:00:03]} Kd6 {[%emt 0:00:27]} 37. c7 {[%emt 0:00:05]} Kd7 {[%emt 0:00:03]} 38. f4 {[%emt 0:03:05]} g4 {[%emt 0:02:47]} 39. Kf2 {[%emt 0:00:46]} Nd2 {[%emt 0:02:37]} 40. Bxa5 {[%emt 0:00:11]} Nc4 {[%emt 0:00:04]} 41. Bc3 {[%emt 0:01:21]} Kxc7 {[%emt 0:00:02]} 42. Ke2 {[%emt 0:00:10]} Kc6 {[%emt 0:06:19]} 43. Kd3 {[%emt 0:00:45]} Nb6 {[%emt 0:00:04]} 44. a5 {[%emt 0:00:05]} Nd5 {[%emt 0:00:06]} 45. Kd4 {[%emt 0:02:22]} h5 {[%emt 0:00:11]} 46. Bd2 {[%emt 0:00:20]} Kd6 {[%emt 0:01:04]} 47. Bc1 {[%emt 0:00:55]} Kc6 {[%emt 0:03:35]} 48. Ke5 {[%emt 0:01:45]} Kd7 {[%emt 0:00:32]} 49. Bd2 {[%emt 0:00:24]} Ne7 {[%emt 0:02:15]} 50. a6 {[%emt 0:02:52]} Nc6+ {[%emt 0:01:17]} 51. Kf6 {[%emt 0:00:03]} Kc7 {[%emt 0:00:18]} 52. Be3 {[%emt 0:00:40]} Na5 {[%emt 0:00:48]} 53. a7 {[%emt 0:00:25]} Kb7 {[%emt 0:00:06]} 54. Kxe6 {[%emt 0:00:20]} Nc4 {[%emt 0:00:07]} 55. Bf2 {[%emt 0:00:57]} Nd2 {[%emt 0:00:15]} 56. Kxf5 {[%emt 0:00:07]} Nf3 {[%emt 0:00:05]} 57. Kg6 {[%emt 0:00:29]} h4 {[%emt 0:00:51]} 58. gxh4 {[%emt 0:00:13]} Nxh2 {[%emt 0:00:05]} 59. h5 {[%emt 0:00:25]} 1-0

[Event "XII Paracin Festival 2019"]
[Site "Paracin"]
[Date "2019.07.06"]
[Round "2.29"]
[White "Harisurya Bharadwaj Gundepudi"]
[Black "Bashirli, Nail"]
[Result "0-1"]
[ECO "A45"]
[WhiteElo "1831"]
[BlackElo "2367"]
[Annotator "NA"]
[PlyCount "94"]
[EventDate "2019.07.05"]
[EventType "swiss"]
[EventCountry "SRB"]
[SourceTitle "playchess.com"]
[Source "ChessBase"]
[SourceQuality "1"]
[TimeControl "5400+30"]

1. d4 {[%emt 0:00:00]} Nf6 {[%emt 0:07:29]} 2. Bf4 {[%emt 0:00:04]} g6 {[%emt 0:01:34]} 3. e3 {[%emt 0:00:16]} Bg7 {[%emt 0:00:08]} 4. Nf3 {[%emt 0:00:07]} d6 {[%emt 0:00:34]} 5. Be2 {[%emt 0:00:14]} O-O {[%emt 0:00:23]} 6. Nbd2 {[%emt 0:01:00]} c5 {[%emt 0:01:13]} 7. c3 {[%emt 0:00:06]} b6 {[%emt 0:00:07]} 8. O-O {[%emt 0:00:07]} Bb7 {[%emt 0:00:52]} 9. a4 {[%emt 0:00:25]} Nbd7 {[%emt 0:03:42]} 10. h3 {[%emt 0:02:06]} Ne4 {[%emt 0:01:40]} 11. Nxe4 {[%emt 0:00:30]} Bxe4 {[%emt 0:00:04]} 12. Nd2 {[%emt 0:00:09]} Bc6 {[%emt 0:01:52]} 13. Bf3 {[%emt 0:04:30]} Qc8 {[%emt 0:06:30]} 14. d5 {[%emt 0:00:40]} Bb7 {[%emt 0:00:10]} 15. Qb3 {[%emt 0:03:17]} Ne5 {[%emt 0:06:43]} 16. Bxe5 {[%emt 0:01:56]} Bxe5 {[%emt 0:00:24]} 17. c4 {[%emt 0:00:11]} Rb8 {[%emt 0:03:36]} 18. Qc2 {[%emt 0:00:25]} Qf5 {[%emt 0:02:09]} 19. Ne4 {[%emt 0:01:46]} h5 {[%emt 0:01:20]} 20. Rac1 {[%emt 0:01:05]} Bc8 {[%emt 0:02:16]} 21. b3 {[%emt 0:01:23]} Bg7 {[%emt 0:01:02]} 22. Be2 {[%emt 0:01:00]} Qe5 {[%emt 0:03:33]} 23. Bd3 {[%emt 0:01:22]} Bf5 {[%emt 0:04:35]} 24. f4 {[%emt 0:01:06]} Qb2 {[%emt 0:00:30]} 25. Qd1 {[%emt 0:00:12]} a6 {[%emt 0:02:22]} 26. Rb1 {[%emt 0:00:50]} Qa3 {[%emt 0:04:10]} 27. g4 {[%emt 0:03:32]} Bxe4 {[%emt 0:03:20]} 28. Bxe4 {[%emt 0:02:54]} hxg4 {[%emt 0:02:59]} 29. hxg4 {[%emt 0:00:07]} b5 {[%emt 0:00:01]} 30. f5 {[%emt 0:06:07]} bxa4 {[%emt 0:05:12]} 31. fxg6 {[%emt 0:00:10]} Rxb3 {[%emt 0:00:07]} 32. gxf7+ {[%emt 0:08:23]} Rxf7 {[%emt 0:00:05]} 33. Rxf7 {[%emt 0:02:18]} Kxf7 {[%emt 0:00:07]} 34. Qf3+ {[%emt 0:00:16]} Ke8 {[%emt 0:01:19]} 35. Rf1 {[%emt 0:12:12]} Rxe3 {[%emt 0:00:33]} 36. Qf7+ {[%emt 0:00:13]} Kd8 {[%emt 0:00:22]} 37. Qg8+ {[%emt 0:09:13]} Kc7 {[%emt 0:01:02]} 38. Qe8 {[%emt 0:01:35]} Rg3+ {[%emt 0:00:29]} 39. Bg2 {[%emt 0:01:58]} Bd4+ {[%emt 0:00:26]} 40. Kh2 {[%emt 0:00:10]} Rh3+ {[%emt 0:00:14]} 41. Bxh3 {[%emt 0:00:15]} Be5+ {[%emt 0:00:05]} 42. Kg1 {[%emt 0:00:15]} Qg3+ {[%emt 0:00:30]} 43. Bg2 {[%emt 0:00:48]} Bd4+ {[%emt 0:00:04]} 44. Rf2 {[%emt 0:00:34]} Qxf2+ {[%emt 0:00:04]} 45. Kh2 {[%emt 0:00:04]} Be5+ {[%emt 0:00:05]} 46. Kh1 {[%emt 0:00:06]} Qe1+ {[%emt 0:00:03]} 47. Bf1 {[%emt 0:00:02]} Qxf1# {[%emt 0:00:05]} 0-1

[Event "XII Paracin Festival 2019"]
[Site "Paracin"]
[Date "2019.07.06"]
[Round "2.30"]
[White "Avalyan, Artur"]
[Black "Koljevic, Nikolina"]
[Result "1-0"]
[ECO "E42"]
[WhiteElo "2351"]
[BlackElo "1960"]
[Annotator "NA"]
[PlyCount "47"]
[EventDate "2019.07.05"]
[EventType "swiss"]
[EventCountry "SRB"]
[SourceTitle "playchess.com"]
[Source "ChessBase"]
[SourceQuality "1"]
[TimeControl "5400+30"]

1. d4 {[%emt 0:00:00]} Nf6 {[%emt 0:00:00]} 2. c4 {[%emt 0:00:00]} e6 {[%emt 0:00:00]} 3. Nc3 {[%emt 0:00:00]} Bb4 {[%emt 0:00:26]} 4. e3 {[%emt 0:01:42]} c5 {[%emt 0:00:20]} 5. Nge2 {[%emt 0:01:18]} cxd4 {[%emt 0:00:57]} 6. exd4 {[%emt 0:00:05]} d5 {[%emt 0:00:16]} 7. a3 {[%emt 0:04:08]} Be7 {[%emt 0:03:43]} 8. Nf4 {[%emt 0:01:41]} Nc6 {[%emt 0:03:45]} 9. Be3 {[%emt 0:00:58]} dxc4 {[%emt 0:02:47]} 10. Bxc4 {[%emt 0:01:24]} O-O {[%emt 0:00:18]} 11. O-O {[%emt 0:04:13]} a6 {[%emt 0:01:43]} 12. Rc1 {[%emt 0:04:57]} b5 {[%emt 0:02:03]} 13. Ba2 {[%emt 0:00:37]} Bb7 {[%emt 0:00:09]} 14. d5 {[%emt 0:11:46]} exd5 {[%emt 0:04:41]} 15. Ncxd5 {[%emt 0:00:25]} Nxd5 {[%emt 0:00:51]} 16. Nxd5 {[%emt 0:01:14]} Bd6 {[%emt 0:05:11]} 17. Qh5 {[%emt 0:04:14]} g6 {[%emt 0:12:57]} 18. Qh6 {[%emt 0:04:14]} Be5 {[%emt 0:04:48]} 19. Bg5 {[%emt 0:06:33]} Qd6 {[%emt 0:03:20]} 20. Rfd1 {[%emt 0:01:52]} Nd4 {[%emt 0:02:47]} 21. Be7 {[%emt 0:01:30]} Bg7 {[%emt 0:04:46]} 22. Qxg7+ {[%emt 0:01:18]} Kxg7 {[%emt 0:00:11]} 23. Bxd6 {[%emt 0:00:02]} Ne2+ {[%emt 0:01:37]} 24. Kf1 {[%emt 0:00:04]} 1-0

[Event "XII Paracin Festival 2019"]
[Site "Paracin"]
[Date "2019.07.06"]
[Round "3.1"]
[White "Martic, Ivan"]
[Black "Ivanisevic, Ivan"]
[Result "0-1"]
[ECO "E42"]
[WhiteElo "2392"]
[BlackElo "2612"]
[Annotator "RC"]
[PlyCount "104"]
[EventDate "2019.07.05"]
[EventType "swiss"]
[EventCountry "SRB"]
[SourceTitle "playchess.com"]
[Source "ChessBase"]
[SourceQuality "1"]
[TimeControl "5400+30"]

1. d4 Nf6 2. c4 e6 3. Nc3 Bb4 4. e3 c5 5. Nge2 b6 6. a3 Ba5 7. Rb1 Na6 8. Bd2 Bb7 9. d5 exd5 10. cxd5 O-O 11. f3 b5 12. e4 b4 13. axb4 cxb4 14. Na4 Re8 15. Ng3 Nxd5 16. Be2 Nb6 17. O-O d5 18. Kh1 dxe4 19. fxe4 Nxa4 20. Qxa4 Nc5 21. Qb5 Bb6 22. Bc4 Kh8 23. Bxf7 Rf8 24. Bd5 Rxf1+ 25. Qxf1 Bxd5 26. exd5 Qxd5 27. Be3 Nd3 28. Rd1 Rd8 29. Bxb6 axb6 30. Rd2 h6 31. h3 b3 32. Nf5 Kh7 33. Ne7 Qe4 34. Qf5+ Qxf5 35. Nxf5 Rd7 36. Ne3 Nc5 37. Rxd7 Nxd7 38. Kg1 Nc5 39. Kf1 Na4 40. Nd1 Kg6 41. Ke2 Kf5 42. Kf3 h5 43. g3 Ke5 44. Ke3 g5 45. h4 gxh4 46. gxh4 b5 47. Kd3 Kf4 48. Kd4 Kg3 49. Kd5 Kxh4 50. Kc6 Kg3 51. Kxb5 Nxb2 52. Ne3 Nd3 0-1

[Event "XII Paracin Festival 2019"]
[Site "Paracin"]
[Date "2019.07.06"]
[Round "3.2"]
[White "Liu, Zhaoqi"]
[Black "Svetushkin, Dmitry"]
[Result "1/2-1/2"]
[ECO "A18"]
[WhiteElo "2386"]
[BlackElo "2528"]
[Annotator "ChessBase"]
[PlyCount "103"]
[EventDate "2019.07.05"]
[EventType "swiss"]
[EventCountry "SRB"]
[SourceTitle "playchess.com"]
[Source "ChessBase"]
[SourceQuality "1"]
[TimeControl "5400+30"]

1. c4 {[%emt 0:00:08]} Nf6 {[%emt 0:01:06]} 2. Nc3 {[%emt 0:00:03]} e6 {[%emt 0:00:09]} 3. e4 {[%emt 0:00:12]} d5 {[%emt 0:00:07]} 4. cxd5 {[%emt 0:00:02]} exd5 {[%emt 0:00:08]} 5. e5 {[%emt 0:00:03]} Ne4 {[%emt 0:00:14]} 6. Nf3 {[%emt 0:00:05]} Bf5 {[%emt 0:00:15]} 7. Be2 {[%emt 0:00:05]} c5 {[%emt 0:00:21]} 8. d4 {[%emt 0:00:43]} Nc6 {[%emt 0:00:49]} 9. O-O {[%emt 0:00:11]} c4 {[%emt 0:07:12]} 10. Nxe4 {[%emt 0:00:05]} Bxe4 {[%emt 0:00:18]} 11. Nd2 {[%emt 0:01:25]} Bf5 {[%emt 0:00:09]} 12. g4 {[%emt 0:00:17]} Be6 {[%emt 0:00:58]} 13. b3 {[%emt 0:04:39]} h5 {[%emt 0:13:09]} 14. Nf3 {[%emt 0:08:33]} cxb3 {[%emt 0:04:40]} 15. Qxb3 {[%emt 0:13:13]} hxg4 {[%emt 0:00:41]} 16. Qxb7 {[%emt 0:04:39]} gxf3 {[%emt 0:22:36]} 17. Bb5 {[%emt 0:00:10]} Rc8 {[%emt 0:00:38]} 18. Bxc6+ {[%emt 0:01:59]} Bd7 {[%emt 0:09:21]} 19. Bxd7+ {[%emt 0:01:26]} Qxd7 {[%emt 0:00:02]} 20. Qxd7+ {[%emt 0:00:27]} Kxd7 {[%emt 0:00:04]} 21. Rb1 {[%emt 0:03:35]} Be7 {[%emt 0:06:31]} 22. Rb3 {[%emt 0:06:27]} Rh3 {[%emt 0:00:31]} 23. Bf4 {[%emt 0:01:55]} g5 {[%emt 0:02:54]} 24. Bg3 {[%emt 0:00:46]} g4 {[%emt 0:00:03]} 25. Rb7+ {[%emt 0:01:27]} Ke6 {[%emt 0:00:04]} 26. Rxa7 {[%emt 0:00:08]} Rh7 {[%emt 0:04:21]} 27. Ra6+ {[%emt 0:14:34]} Kf5 {[%emt 0:00:20]} 28. Re1 {[%emt 0:01:03]} Rc2 {[%emt 0:06:18]} 29. a4 {[%emt 0:07:24]} Bd8 {[%emt 0:06:48]} 30. Rd6 {[%emt 0:04:19]} Ba5 {[%emt 0:00:17]} 31. Rd1 {[%emt 0:02:41]} Ke4 {[%emt 0:00:46]} 32. e6 {[%emt 0:01:38]} f5 {[%emt 0:01:24]} 33. Rd7 {[%emt 0:01:47]} Rxd7 {[%emt 0:02:33]} 34. exd7 {[%emt 0:00:02]} Bd8 {[%emt 0:00:06]} 35. Be5 {[%emt 0:03:49]} Ra2 {[%emt 0:01:33]} 36. h3 {[%emt 0:03:13]} Rxa4 {[%emt 0:00:29]} 37. Re1+ {[%emt 0:02:03]} Kd3 {[%emt 0:00:03]} 38. hxg4 {[%emt 0:00:03]} fxg4 {[%emt 0:00:06]} 39. Kh2 {[%emt 0:00:05]} Ra7 {[%emt 0:03:23]} 40. Kg3 {[%emt 0:00:49]} Rxd7 {[%emt 0:00:17]} 41. Kxg4 {[%emt 0:00:31]} Bb6 {[%emt 0:04:34]} 42. Re3+ {[%emt 0:00:37]} Kc4 {[%emt 0:00:04]} 43. Rxf3 {[%emt 0:00:16]} Bc7 {[%emt 0:01:11]} 44. Bh8 {[%emt 0:04:49]} Rd8 {[%emt 0:00:11]} 45. Bf6 {[%emt 0:00:09]} Rf8 {[%emt 0:00:02]} 46. Rf5 {[%emt 0:03:21]} Bd8 {[%emt 0:00:50]} 47. Be5 {[%emt 0:04:16]} Rxf5 {[%emt 0:00:20]} 48. Kxf5 {[%emt 0:00:03]} Bb6 {[%emt 0:00:04]} 49. f4 {[%emt 0:00:31]} Bxd4 {[%emt 0:00:03]} 50. Bxd4 {[%emt 0:00:19]} Kxd4 {[%emt 0:00:03]} 51. Ke6 {[%emt 0:00:07]} Ke3 {[%emt 0:00:06]} 52. Kxd5 {[%emt 0:00:09] Ke4+} 1/2-1/2